fUSD/lending_fUSD_20260429
["ID","MTS","AMOUNT","RATE_DAILY","PERIOD"]
[421310442,1777402245585,-994.7,0.00016438,2]
[421310443,1777402245594,-787.63,0.00016438,2]
[421310444,1777402245604,-150.0,0.00016438,2]
[421310445,1777402245614,-202.55565002,0.00016438,2]
[421310446,1777402245624,-150.0,0.00016438,2]
[421310447,1777402245633,-2500.0,0.00016438,2]
[421310448,1777402245643,-2500.0,0.00016438,2]
[421310449,1777402245652,-2500.0,0.00016438,2]
[421310450,1777402245662,-2500.0,0.00016438,2]
[421310451,1777402245671,-2500.0,0.00016438,2]
[421310452,1777402245681,-2500.0,0.00016438,2]
[421310453,1777402245690,-2500.0,0.00016438,2]
[421310454,1777402245700,-2500.0,0.00016438,2]
[421310455,1777402245709,-2500.0,0.00016438,2]
[421310456,1777402245719,-157.79987862,0.00016438,7]
[421310457,1777402245728,-157.79987862,0.00016438,7]
[421310458,1777402245738,-165.29166043,0.00016438,2]
[421310459,1777402245747,-500.0,0.00016438,2]
[421310460,1777402245756,-500.0,0.00016438,2]
[421310461,1777402245766,-500.0,0.00016438,2]
[421310462,1777402245776,-500.0,0.00016438,2]
[421310463,1777402245785,-500.0,0.00016438,2]
[421310464,1777402245794,-500.0,0.00016438,2]
[421310465,1777402245803,-500.0,0.00016438,2]
[421310466,1777402245812,-500.0,0.00016438,2]
[421310467,1777402245822,-500.0,0.00016438,2]
[421310468,1777402245831,-211.66002307,0.00016438,2]
[421310469,1777402245840,-162.97830674,0.00016438,2]
[421310470,1777402245850,-500.0,0.00016438,2]
[421310471,1777402245859,-500.0,0.00016438,2]
[421310472,1777402245869,-500.0,0.00016438,2]
[421310473,1777402245878,-500.0,0.00016438,2]
[421310474,1777402245888,-160.83792727,0.00016438,2]
[421310475,1777402245897,-500.0,0.00016438,2]
[421310476,1777402245907,-500.0,0.00016438,2]
[421310477,1777402245916,-338.77693756,0.00016438,2]
[421310478,1777402245926,-529.02914942,0.00016438,2]
[421310479,1777402245935,-500.0,0.00016438,2]
[421310480,1777402245945,-165.4749815,0.00016438,2]
[421310481,1777402245955,-500.0,0.00016438,2]
[421310482,1777402245965,-500.0,0.00016438,2]
[421310483,1777402245974,-164.0229216,0.00016438,2]
[421310484,1777402245983,-500.0,0.00016438,2]
[421310485,1777402245992,-500.0,0.00016438,2]
[421310486,1777402246002,-500.0,0.00016438,2]
[421310487,1777402246011,-500.0,0.00016438,2]
[421310488,1777402246020,-500.0,0.00016438,2]
[421310489,1777402246030,-162.40914267,0.00016438,2]
[421310490,1777402246040,-500.0,0.00016438,2]
[421310491,1777402246049,-500.0,0.00016438,2]
[421310492,1777402246058,-500.0,0.00016438,2]
[421310493,1777402246067,-500.0,0.00016438,2]
[421310494,1777402246077,-500.0,0.00016438,2]
[421310495,1777402246086,-520.4530478,0.00016438,2]
[421310496,1777402246095,-500.0,0.00016438,2]
[421310497,1777402246104,-200.20443376,0.00016438,2]
[421310498,1777402246114,-500.0,0.00016438,2]
[421310499,1777402246123,-500.0,0.00016438,2]
[421310500,1777402246132,-200.2095352,0.00016438,2]
[421310501,1777402246142,-500.0,0.00016438,2]
[421310502,1777402246151,-492.00799451,0.00016438,2]
[421310503,1777402246161,-517.05614272,0.00016438,2]
[421310504,1777402246171,-500.0,0.00016438,2]
[421310505,1777402246181,-408.97331249,0.00016438,2]
[421310506,1777402246190,-167.24104462,0.00016438,2]
[421310507,1777402246200,-500.0,0.00016438,2]
[421310508,1777402246210,-500.0,0.00016438,2]
[421310509,1777402246219,-163.12219063,0.00016438,2]
[421310510,1777402246229,-500.0,0.00016438,2]
[421310511,1777402246239,-500.0,0.00016438,2]
[421310512,1777402246248,-500.0,0.00016438,2]
[421310513,1777402246259,-313.53745834,0.00016438,2]
[421310515,1777402246269,-500.0,0.00016438,2]
[421310517,1777402246278,-500.0,0.00016438,2]
[421310518,1777402246287,-163.49058564,0.00016438,2]
[421310519,1777402246297,-500.0,0.00016438,2]
[421310520,1777402246306,-500.0,0.00016438,2]
[421310521,1777402246315,-500.0,0.00016438,2]
[421310522,1777402246324,-500.0,0.00016438,2]
[421310523,1777402246334,-150.0,0.00016438,2]
[421310524,1777402246343,-500.0,0.00016438,2]
[421310525,1777402246353,-500.0,0.00016438,2]
[421310526,1777402246362,-164.20272796,0.00016438,2]
[421310527,1777402246372,-500.0,0.00016438,2]
[421310528,1777402246382,-500.0,0.00016438,2]
[421310529,1777402246391,-500.0,0.00016438,2]
[421310530,1777402246403,-164.79249629,0.00016438,2]
[421310531,1777402246413,-500.0,0.00016438,2]
[421310532,1777402246422,-475.65166561,0.00016438,2]
[421310533,1777402246432,-160.21358357,0.00016438,2]
[421310534,1777402246442,-500.0,0.00016438,2]
[421310535,1777402246452,-500.0,0.00016438,2]
[421310536,1777402246462,-500.0,0.00016438,2]
[421310537,1777402246471,-12469.66,0.00016448,2]
[421310538,1777402246480,-1865.44,0.00016448,2]
[421310539,1777402246490,-865.81,0.00016499,2]
[421310540,1777402246500,-746.52,0.00016499,2]
[421310541,1777402246510,-500.0,0.00016499,2]
[421310542,1777402246519,-1030.87,0.00016499,2]
[421310543,1777402246529,-533.63,0.00016499,2]
[421310545,1777402246538,-741.78,0.00016499,2]
[421310547,1777402246548,-500.0,0.00016499,2]
[421310549,1777402246557,-719.9,0.00016499,2]
[421310550,1777402246566,-500.0,0.00016499,2]
[421310551,1777402246575,-500.0,0.00016499,2]
[421310552,1777402246584,-500.0,0.00016499,2]
[421310553,1777402246594,-1801.93,0.00016499,2]
[421310554,1777402246603,-2500.0,0.00016499,2]
[421310555,1777402246613,-500.0,0.00016499,2]
[421310556,1777402246622,-64038.96780271,0.000165,2]
[421310557,1777402246632,-46449.27472537,0.000165,2]
[421310558,1777402246641,-6594.03103074,0.000165,2]
[421310559,1777402246650,-13022.04501258,0.000165,2]
[421310560,1777402246660,-607.8,0.00016599,2]
[421310561,1777402246669,-592.74,0.00016599,2]
[421310562,1777402246679,-500.0,0.00016599,2]
[421310563,1777402246688,-1118.78,0.00016599,2]
[421310564,1777402246698,-500.0,0.00016599,2]
[421310565,1777402246707,-536.09,0.00016599,2]
[421310566,1777402246717,-714.97,0.00016599,2]
[421310567,1777402246727,-1824.27,0.00016599,2]
[421310568,1777402246737,-978.93,0.00016599,2]
[421310569,1777402246746,-1048.28,0.00016599,2]
[421310570,1777402246755,-500.0,0.00016599,2]
[421310571,1777402246764,-500.0,0.00016599,2]
[421310572,1777402246774,-10238.78353299,0.000166,2]
[421310573,1777402246783,-297.55,0.000166,2]
[421310574,1777402246793,-150.814,0.000166,2]
[421310575,1777402246803,-150.814,0.000166,2]
[421310576,1777402246812,-150.814,0.000166,2]
[421310577,1777402246822,-150.814,0.000166,2]
[421310578,1777402246832,-150.814,0.000166,2]
[421310579,1777402246842,-150.814,0.000166,2]
[421310580,1777402246851,-151.0,0.000166,2]
[421310582,1777402246861,-30000.0,0.000166,2]
[421310583,1777402246870,-364.28118705,0.000166,2]
[421310584,1777402246880,-1006.44,0.000166,2]
[421310585,1777402246890,-204.05329943,0.000166,2]
[421310586,1777402246900,-249.29632507,0.000166,2]
[421310587,1777402246910,-400.0,0.00016655,2]
[421310588,1777402246919,-400.0,0.00016655,2]
[421310589,1777402246929,-400.0,0.00016655,2]
[421310590,1777402246940,-994.7,0.00016712,2]
[421310591,1777402246950,-787.63,0.00016712,2]
[421310592,1777402246960,-450.0,0.00016712,2]
[421310593,1777402246969,-155.0,0.00016786,2]
[421310594,1777402247138,-155.0,0.00016799,2]
[421310595,1777402247170,-187.88957358,0.000169,2]
[421310596,1777402247181,-206.65104624,0.000169,2]
[421310597,1777402247190,-3844.32525759,0.000169,2]
[421310598,1777402247199,-176.22671612,0.000169,2]
[421310599,1777402247209,-325.94387674,0.000169,2]
[421310600,1777402247218,-500.0,0.00016973,2]
[421310601,1777402247227,-500.0,0.00016973,2]
[421310602,1777402247236,-500.0,0.00016973,2]
[421310603,1777402247245,-994.7,0.00016986,2]
[421310604,1777402247255,-787.63,0.00016986,2]
[421310605,1777402247264,-1000.0,0.00016986,2]
[421310606,1777402247277,-1000.0,0.00016986,2]
[421310607,1777402247287,-1000.0,0.00016986,2]
[421310608,1777402247296,-1000.0,0.00016986,2]
[421310609,1777402247306,-1000.0,0.00016986,2]
[421310610,1777402247317,-1000.0,0.00016986,2]
[421310611,1777402247327,-670.26712135,0.00016986,2]
[421310612,1777402247338,-1000.0,0.00016986,2]
[421310613,1777402247349,-1000.0,0.00016986,2]
[421310614,1777402247360,-1000.0,0.00016986,2]
[421310615,1777402247370,-811.76922862,0.00016986,2]
[421310616,1777402247380,-407.08166982,0.00016986,2]
[421310617,1777402247389,-1000.0,0.00016986,2]
[421310618,1777402247399,-1000.0,0.00016986,2]
[421310619,1777402247410,-1000.0,0.00016986,2]
[421310620,1777402247420,-630.92654632,0.00016986,2]
[421310621,1777402247430,-1000.0,0.00016986,2]
[421310622,1777402247440,-1000.0,0.00016986,2]
[421310623,1777402247450,-1000.0,0.00016986,2]
[421310624,1777402247460,-1000.0,0.00016986,2]
[421310625,1777402247470,-181.83542749,0.00016986,2]
[421310626,1777402247479,-1000.0,0.00016986,2]
[421310627,1777402247489,-388.190514,0.00016986,2]
[421310628,1777402247499,-1000.0,0.00016986,2]
[421310629,1777402247512,-613.56989868,0.00016986,2]
[421310630,1777402247522,-1106.38068585,0.00016986,2]
[421310631,1777402247531,-1000.0,0.00016986,2]
[421310632,1777402247541,-1000.0,0.00016986,2]
[421310633,1777402247551,-1000.0,0.00016986,2]
[421310634,1777402247561,-1000.0,0.00016986,2]
[421310635,1777402247572,-1000.0,0.00016986,2]
[421310636,1777402247581,-1000.0,0.00016986,2]
[421310637,1777402247591,-816.60607106,0.00016986,2]
[421310638,1777402247601,-1000.0,0.00016986,2]
[421310639,1777402247611,-1000.0,0.00016986,2]
[421310640,1777402247621,-501.8185586,0.00016986,2]
[421310641,1777402247631,-1000.0,0.00016986,2]
[421310642,1777402247640,-1115.56117746,0.00016986,2]
[421310643,1777402247650,-1000.0,0.00016986,2]
[421310644,1777402247660,-195.01607086,0.00016986,2]
[421310645,1777402247670,-1000.0,0.00016986,2]
[421310646,1777402247680,-1000.0,0.00016986,2]
[421310647,1777402247690,-150.0,0.00016986,2]
[421310648,1777402247700,-1000.0,0.00016986,2]
[421310649,1777402247710,-288.66163461,0.00016986,2]
[421310650,1777402247719,-1000.0,0.00016986,2]
[421310651,1777402247729,-1000.0,0.00016986,2]
[421310652,1777402247742,-564.36863046,0.00016986,2]
[421310653,1777402247751,-1000.0,0.00016986,2]
[421310654,1777402247761,-1000.0,0.00016986,2]
[421310655,1777402247770,-1000.0,0.00016986,2]
[421310656,1777402247780,-1000.0,0.00016986,2]
[421310657,1777402247790,-1000.0,0.00016986,2]
[421310658,1777402247800,-1000.0,0.00016986,2]
[421310659,1777402247809,-1010.11438529,0.0001699,2]
[421310660,1777402247819,-865.81,0.00016998,2]
[421310661,1777402247828,-746.52,0.00016998,2]
[421310662,1777402247838,-594.95133939,0.00016998,2]
[421310663,1777402247848,-1030.87,0.00016998,2]
[421310664,1777402247858,-533.63,0.00016998,2]
[421310665,1777402247867,-741.78,0.00016998,2]
[421310666,1777402247878,-500.0,0.00016998,2]
[421310667,1777402247888,-719.9,0.00016998,2]
[421310668,1777402247897,-500.0,0.00016998,2]
[421310669,1777402247907,-500.0,0.00016998,2]
[421310670,1777402247917,-500.0,0.00016998,2]
[421310671,1777402247927,-1801.93,0.00016998,2]
[421310672,1777402247938,-2500.0,0.00016998,2]
[421310673,1777402247948,-500.0,0.00016998,2]
[421310674,1777402247959,-607.8,0.00016999,2]
[421310675,1777402247971,-607.8,0.00016999,2]
[421310676,1777402247980,-607.8,0.00016999,2]
[421310677,1777402247990,-607.8,0.00016999,2]
[421310678,1777402247999,-607.8,0.00016999,2]
[421310679,1777402248010,-607.8,0.00016999,2]
[421310680,1777402248020,-592.74,0.00016999,2]
[421310681,1777402248031,-592.74,0.00016999,2]
[421310682,1777402248041,-592.74,0.00016999,2]
[421310683,1777402248051,-592.74,0.00016999,2]
[421310684,1777402248061,-592.74,0.00016999,2]
[421310685,1777402248071,-592.74,0.00016999,2]
[421310686,1777402248080,-504.9486565,0.00016999,2]
[421310687,1777402248090,-1118.78,0.00016999,2]
[421310688,1777402248099,-1118.78,0.00016999,2]
[421310689,1777402248109,-1118.78,0.00016999,2]
[421310690,1777402248119,-1118.78,0.00016999,2]
[421310691,1777402248128,-1118.78,0.00016999,2]
[421310692,1777402248137,-1118.78,0.00016999,2]
[421310693,1777402248147,-500.0,0.00016999,2]
[421310694,1777402248156,-500.0,0.00016999,2]
[421310695,1777402248166,-500.0,0.00016999,2]
[421310696,1777402248175,-500.0,0.00016999,2]
[421310697,1777402248185,-500.0,0.00016999,2]
[421310699,1777402248195,-261.21643902,0.00016999,2]
[421310700,1777402248205,-865.81,0.00016999,2]
[421310701,1777402248214,-865.81,0.00016999,2]
[421310702,1777402248224,-865.81,0.00016999,2]
[421310703,1777402248234,-865.81,0.00016999,2]
[421310704,1777402248244,-865.81,0.00016999,2]
[421310705,1777402248254,-746.52,0.00016999,2]
[421310706,1777402248263,-746.52,0.00016999,2]
[421310707,1777402248273,-746.52,0.00016999,2]
[421310708,1777402248282,-746.52,0.00016999,2]
[421310709,1777402248292,-746.52,0.00016999,2]
[421310710,1777402248302,-536.09,0.00016999,2]
[421310711,1777402248311,-536.09,0.00016999,2]
[421310712,1777402248321,-536.09,0.00016999,2]
[421310713,1777402248331,-536.09,0.00016999,2]
[421310714,1777402248341,-536.09,0.00016999,2]
[421310715,1777402248350,-536.09,0.00016999,2]
[421310716,1777402248360,-714.97,0.00016999,2]
[421310717,1777402248369,-714.97,0.00016999,2]
[421310718,1777402248379,-714.97,0.00016999,2]
[421310719,1777402248389,-714.97,0.00016999,2]
[421310720,1777402248398,-714.97,0.00016999,2]
[421310721,1777402248408,-714.97,0.00016999,2]
[421310722,1777402248424,-1824.27,0.00016999,2]
[421310723,1777402248439,-1824.27,0.00016999,2]
[421310724,1777402248449,-1824.27,0.00016999,2]
[421310725,1777402248460,-1824.27,0.00016999,2]
[421310726,1777402248471,-1824.27,0.00016999,2]
[421310727,1777402248482,-1824.27,0.00016999,2]
[421310728,1777402248492,-978.93,0.00016999,2]
[421310729,1777402248502,-978.93,0.00016999,2]
[421310730,1777402248512,-978.93,0.00016999,2]
[421310731,1777402248523,-978.93,0.00016999,2]
[421310732,1777402248533,-978.93,0.00016999,2]
[421310733,1777402248543,-978.93,0.00016999,2]
[421310734,1777402248553,-1048.28,0.00016999,2]
[421310735,1777402248562,-1048.28,0.00016999,2]
[421310736,1777402248573,-1048.28,0.00016999,2]
[421310737,1777402248583,-1048.28,0.00016999,2]
[421310738,1777402248594,-1048.28,0.00016999,2]
[421310739,1777402248604,-1048.28,0.00016999,2]
[421310740,1777402248614,-500.0,0.00016999,2]
[421310741,1777402248624,-500.0,0.00016999,2]
[421310742,1777402248634,-500.0,0.00016999,2]
[421310743,1777402248644,-500.0,0.00016999,2]
[421310744,1777402248654,-500.0,0.00016999,2]
[421310745,1777402248664,-500.0,0.00016999,2]
[421310746,1777402248674,-1030.87,0.00016999,2]
[421310747,1777402248685,-1030.87,0.00016999,2]
[421310748,1777402248695,-1030.87,0.00016999,2]
[421310749,1777402248706,-1030.87,0.00016999,2]
[421310750,1777402248715,-1030.87,0.00016999,2]
[421310751,1777402248725,-533.63,0.00016999,2]
[421310752,1777402248735,-533.63,0.00016999,2]
[421310753,1777402248746,-533.63,0.00016999,2]
[421310754,1777402248756,-533.63,0.00016999,2]
[421310755,1777402248768,-533.63,0.00016999,2]
[421310756,1777402248778,-741.78,0.00016999,2]
[421310757,1777402248788,-741.78,0.00016999,2]
[421310758,1777402248799,-741.78,0.00016999,2]
[421310759,1777402248810,-741.78,0.00016999,2]
[421310760,1777402248820,-741.78,0.00016999,2]
[421310761,1777402248831,-500.0,0.00016999,2]
[421310762,1777402248842,-500.0,0.00016999,2]
[421310763,1777402248853,-646.17829867,0.00016999,2]
[421310764,1777402248863,-500.0,0.00016999,2]
[421310765,1777402248874,-500.0,0.00016999,2]
[421310766,1777402248886,-500.0,0.00016999,2]
[421310767,1777402248898,-500.0,0.00016999,2]
[421310768,1777402248908,-500.0,0.00016999,2]
[421310769,1777402248919,-719.9,0.00016999,2]
[421310770,1777402248930,-719.9,0.00016999,2]
[421310772,1777402248940,-719.9,0.00016999,2]
[421310773,1777402248950,-719.9,0.00016999,2]
[421310775,1777402248961,-719.9,0.00016999,2]
[421310776,1777402248972,-500.0,0.00016999,2]
[421310777,1777402248980,-500.0,0.00016999,2]
[421310778,1777402248991,-500.0,0.00016999,2]
[421310779,1777402249001,-500.0,0.00016999,2]
[421310780,1777402249012,-344.20908683,0.00016999,2]
[421310781,1777402249023,-500.0,0.00016999,2]
[421310782,1777402249034,-500.0,0.00016999,2]
[421310783,1777402249048,-500.0,0.00016999,2]
[421310784,1777402249059,-500.0,0.00016999,2]
[421310785,1777402249069,-500.0,0.00016999,2]
[421310786,1777402249080,-500.0,0.00016999,2]
[421310787,1777402249090,-322.92591279,0.00016999,2]
[421310788,1777402249101,-1801.93,0.00016999,2]
[421310789,1777402249111,-1801.93,0.00016999,2]
[421310790,1777402249121,-1801.93,0.00016999,2]
[421310791,1777402249132,-1801.93,0.00016999,2]
[421310792,1777402249142,-1801.93,0.00016999,2]
[421310793,1777402249153,-2500.0,0.00016999,2]
[421310794,1777402249163,-2500.0,0.00016999,2]
[421310795,1777402249173,-2500.0,0.00016999,2]
[421310796,1777402249184,-2500.0,0.00016999,2]
[421310797,1777402249194,-2500.0,0.00016999,2]
[421310798,1777402249204,-500.0,0.00016999,2]
[421310799,1777402249215,-500.0,0.00016999,2]
[421310800,1777402249225,-500.0,0.00016999,2]
[421310801,1777402249235,-500.0,0.00016999,2]
[421310802,1777402249245,-309.46616297,0.00016999,2]
[421310803,1777402249255,-1567.0461708,0.00017,2]
[421310804,1777402249615,-640.32883017,8.73e-05,2]
[421310805,1777402249703,-8684.46479817,0.00017,2]
[421310808,1777402256610,-500.0,8.73e-05,2]
[421310809,1777402256621,-2787.407,0.00011519,2]
[421310810,1777402256631,-150.0,0.00011519,2]
[421310811,1777402256641,-150.57,0.00011519,2]
[421310812,1777402256650,-2040.23192967,0.0001176,2]
[421310813,1777402256660,-689.61305566,0.00013699,2]
[421310814,1777402256670,-689.61305566,0.00013699,2]
[421310815,1777402256680,-689.61305566,0.00013699,2]
[421310816,1777402256690,-689.61305566,0.00013699,2]
[421310817,1777402256699,-689.61305566,0.00013699,2]
[421310818,1777402256708,-689.61305566,0.00013699,2]
[421310819,1777402256718,-689.61305566,0.00013699,2]
[421310820,1777402256728,-689.61305566,0.00013699,2]
[421310821,1777402256738,-689.61305566,0.00013699,2]
[421310822,1777402256747,-689.61305566,0.00013699,2]
[421310823,1777402256756,-689.61305566,0.00013699,2]
[421310824,1777402256765,-689.61305566,0.00013699,2]
[421310825,1777402256775,-689.61305566,0.00013699,2]
[421310826,1777402256785,-689.61305566,0.00013699,2]
[421310827,1777402256797,-689.61305566,0.00013699,2]
[421310828,1777402256806,-689.61305566,0.00013699,2]
[421310829,1777402256816,-689.61305566,0.00013699,2]
[421310830,1777402256825,-689.61305566,0.00013699,2]
[421310831,1777402256835,-689.61305566,0.00013699,2]
[421310832,1777402256844,-689.61305566,0.00013699,2]
[421310833,1777402256854,-689.61305566,0.00013699,2]
[421310834,1777402256865,-689.61305566,0.00013699,2]
[421310835,1777402256874,-689.61305566,0.00013699,2]
[421310836,1777402256884,-689.61305566,0.00013699,2]
[421310837,1777402256893,-689.61305566,0.00013699,2]
[421310838,1777402256903,-689.61305566,0.00013699,2]
[421310839,1777402256912,-689.61305566,0.00013699,2]
[421310840,1777402256922,-689.61305566,0.00013699,2]
[421310841,1777402256931,-689.61305566,0.00013699,2]
[421310842,1777402256941,-689.61305566,0.00013699,2]
[421310843,1777402256950,-689.61305566,0.00013699,2]
[421310844,1777402256960,-689.61305566,0.00013699,2]
[421310845,1777402256969,-689.61305566,0.00013699,2]
[421310846,1777402256979,-689.61305566,0.00013699,2]
[421310847,1777402256988,-689.61305566,0.00013699,2]
[421310848,1777402256998,-689.61305566,0.00013699,2]
[421310849,1777402257008,-689.61305566,0.00013699,2]
[421310850,1777402257017,-689.61305566,0.00013699,2]
[421310851,1777402257027,-689.61305566,0.00013699,2]
[421310852,1777402257037,-689.61305566,0.00013699,2]
[421310853,1777402257047,-689.61305566,0.00013699,2]
[421310854,1777402257057,-689.61305566,0.00013699,2]
[421310855,1777402257066,-689.61305566,0.00013699,2]
[421310856,1777402257076,-689.61305566,0.00013699,2]
[421310857,1777402257086,-689.61305566,0.00013699,2]
[421310858,1777402257096,-689.61305566,0.00013699,2]
[421310859,1777402257106,-689.61305566,0.00013699,2]
[421310860,1777402257118,-689.61305566,0.00013699,2]
[421310861,1777402257129,-689.61305566,0.00013699,2]
[421310862,1777402257139,-1370737.74986999,0.00017,2]
[421310863,1777402257149,-350.0,0.00017,2]
[421310864,1777402257158,-1272.47,0.00017,2]
[421310865,1777402257168,-787.63,0.0001704,2]
[421310866,1777402257177,-787.63,0.0001704,2]
[421310867,1777402257188,-5834.0,0.00017167,2]
[421310868,1777402257198,-533.63,0.0001724,2]
[421310869,1777402257207,-719.9,0.0001724,2]
[421310870,1777402257217,-500.0,0.0001724,2]
[421310871,1777402257226,-994.7,0.0001726,2]
[421310872,1777402257236,-550.0,0.0001726,2]
[421310873,1777402257245,-404.58,0.00017325,2]
[421310874,1777402257254,-1621.22608651,0.0001742,2]
[421310875,1777402257265,-500.0,0.00017452,2]
[421310876,1777402257274,-623.0,0.00017519,2]
[421310877,1777402257285,-3532.0,0.00017519,2]
[421310878,1777402257294,-1350.0,0.00017519,2]
[421310879,1777402257303,-1049.0,0.00017519,2]
[421310880,1777402257312,-1266.0,0.00017519,2]
[421310881,1777402257322,-150.0,0.00017519,2]
[421310882,1777402257331,-3782.0,0.00017519,2]
[421310883,1777402257340,-1000.0,0.00017521,2]
[421310884,1777402257350,-191.70396847,0.00017521,2]
[421310885,1777402257359,-1000.0,0.00017521,2]
[421310886,1777402257370,-865.81,0.00017533,2]
[421310887,1777402257381,-746.52,0.00017533,2]
[421310888,1777402257391,-1030.87,0.00017533,2]
[421310889,1777402257402,-741.78,0.00017533,2]
[421310890,1777402257415,-425.34765954,0.00017533,2]
[421310891,1777402257425,-1801.93,0.00017533,2]
[421310892,1777402257435,-2500.0,0.00017533,2]
[421310893,1777402257445,-994.7,0.00017534,2]
[421310894,1777402257455,-1500.0,0.00017534,2]
[421310895,1777402257464,-870.63250296,0.00017534,2]
[421310896,1777402257474,-1500.0,0.00017534,2]
[421310897,1777402257484,-1500.0,0.00017534,2]
[421310898,1777402257493,-1500.0,0.00017534,2]
[421310899,1777402257504,-1500.0,0.00017534,2]
[421310900,1777402257514,-1500.0,0.00017534,2]
[421310901,1777402257523,-1500.0,0.00017534,2]
[421310902,1777402257533,-1500.0,0.00017534,2]
[421310903,1777402257543,-1500.0,0.00017534,2]
[421310904,1777402257552,-1500.0,0.00017534,2]
[421310905,1777402257562,-1500.0,0.00017534,2]
[421310906,1777402257571,-1500.0,0.00017534,2]
[421310907,1777402257583,-1500.0,0.00017534,2]
[421310908,1777402257592,-1429.8045801,0.00017534,2]
[421310909,1777402257603,-1500.0,0.00017534,2]
[421310910,1777402257612,-1500.0,0.00017534,2]
[421310911,1777402257621,-1500.0,0.00017534,2]
[421310912,1777402257631,-1500.0,0.00017534,2]
[421310913,1777402257641,-1500.0,0.00017534,2]
[421310914,1777402257651,-1500.0,0.00017534,2]
[421310915,1777402257660,-1500.0,0.00017534,2]
[421310916,1777402257670,-1500.0,0.00017534,2]
[421310917,1777402257679,-1500.0,0.00017534,2]
[421310918,1777402257690,-409.25349671,0.00017534,2]
[421310919,1777402257699,-797.63256867,0.00017534,2]
[421310920,1777402257708,-1500.0,0.00017534,2]
[421310921,1777402257718,-1500.0,0.00017534,2]
[421310922,1777402257727,-924.86432958,0.00017534,2]
[421310923,1777402257736,-1500.0,0.00017534,2]
[421310924,1777402257746,-150.0,0.00017534,2]
[421310925,1777402257755,-1500.0,0.00017534,2]
[421310926,1777402257765,-1535.26514066,0.00017534,2]
[421310927,1777402257774,-1500.0,0.00017534,2]
[421310928,1777402257784,-398.83072254,0.00017534,2]
[421310929,1777402257794,-1500.0,0.00017534,2]
[421310930,1777402257803,-1500.0,0.00017534,2]
[421310931,1777402257813,-1500.0,0.00017534,2]
[421310932,1777402257822,-1500.0,0.00017534,2]
[421310933,1777402257832,-1500.0,0.00017534,2]
[421310934,1777402257842,-1421.47789294,0.00017636,2]
[421310935,1777402257851,-790.43957309,0.000177,2]
[421310936,1777402257860,-1118.78,0.00017717,2]
[421310937,1777402257870,-536.09,0.00017717,2]
[421310938,1777402257879,-714.97,0.00017717,2]
[421310939,1777402257889,-1824.27,0.00017717,2]
[421310940,1777402257898,-1048.28,0.00017717,2]
[421310941,1777402257908,-500.0,0.00017717,2]
[421310942,1777402257917,-607.8,0.00017726,2]
[421310943,1777402257927,-607.8,0.00017726,2]
[421310944,1777402257937,-607.8,0.00017726,2]
[421310945,1777402257946,-607.8,0.00017726,2]
[421310946,1777402257956,-608.00072763,0.00017726,2]
[421310947,1777402257965,-592.74,0.00017726,2]
[421310948,1777402257974,-592.74,0.00017726,2]
[421310949,1777402257983,-592.74,0.00017726,2]
[421310950,1777402257993,-592.74,0.00017726,2]
[421310951,1777402258002,-592.83997582,0.00017726,2]
[421310952,1777402258012,-978.93,0.00017726,2]